[Event "SM-blixten 2025"]
[Site "Uppsala, Sweden"]
[Date "2025.07.03"]
[Round "6.6"]
[White "Wernberg, Hugo"]
[Black "Grahn, Vidar"]
[Result "0-1"]
[TimeControl "3 min + 2 sec increment starting from move 1"]
[WhiteTitle "FM"]
[BlackTitle "FM"]
[WhiteElo "2247"]
[BlackElo "2239"]

1. Nc3 {[%clk 00:03:04]} {[%emt 00:07:55]} g6 {[%clk 00:03:01]} {[%emt
00:00:03]} 2. d4 {[%clk 00:03:04]} {[%emt 00:00:01]} d5 {[%clk 00:03:00]}
{[%emt 00:00:04]} 3. Bf4 {[%clk 00:03:05]} Nf6 {[%clk 00:03:00]} {[%emt
00:00:02]} 4. h4 {[%clk 00:03:06]} h5 {[%clk 00:03:02]} 5. e3 {[%clk 00:03:08]}
{[%emt 00:00:02]} Bg7 {[%clk 00:03:03]} {[%emt 00:00:01]} 6. Nf3 {[%clk
00:03:09]} {[%emt 00:00:01]} O-O {[%clk 00:03:03]} {[%emt 00:00:02]} 7. Ne5
{[%clk 00:03:06]} {[%emt 00:00:05]} c5 {[%clk 00:03:04]} 8. dxc5 {[%clk
00:03:07]} {[%emt 00:00:01]} Qa5 {[%clk 00:03:02]} {[%emt 00:00:04]} 9. Be2
{[%clk 00:02:52]} {[%emt 00:00:17]} Qxc5 {[%clk 00:03:00]} {[%emt 00:00:04]} 10.
g4 {[%clk 00:02:47]} {[%emt 00:00:07]} hxg4 {[%clk 00:02:40]} {[%emt 00:00:22]}
11. Nxg4 {[%clk 00:02:44]} {[%emt 00:00:05]} Nxg4 {[%clk 00:02:40]} {[%emt
00:00:02]} 12. Bxg4 {[%clk 00:02:44]} {[%emt 00:00:02]} Bxc3+ {[%clk 00:02:35]}
{[%emt 00:00:07]} 13. bxc3 {[%clk 00:02:44]} {[%emt 00:00:02]} Qxc3+ {[%clk
00:02:36]} {[%emt 00:00:01]} 14. Kf1 {[%clk 00:02:38]} {[%emt 00:00:08]} Bxg4
{[%clk 00:02:36]} {[%emt 00:00:02]} 15. Qxg4 {[%clk 00:02:38]} {[%emt
00:00:02]} Qxa1+ {[%clk 00:02:32]} {[%emt 00:00:07]} 16. Kg2 {[%clk 00:02:39]}
Qg7 {[%clk 00:02:32]} {[%emt 00:00:01]} 17. Kf1 {[%clk 00:02:27]} {[%emt
00:00:14]} e5 {[%clk 00:02:28]} {[%emt 00:00:06]} 18. Bg5 {[%clk 00:01:35]}
{[%emt 00:00:54]} f6 {[%clk 00:02:29]} {[%emt 00:00:02]} 19. h5 {[%clk
00:01:19]} {[%emt 00:00:17]} fxg5 {[%clk 00:02:30]} {[%emt 00:00:02]} 20. hxg6
{[%clk 00:01:19]} {[%emt 00:00:02]} Qxg6 {[%clk 00:02:24]} {[%emt 00:00:08]} 21.
Rh5 {[%clk 00:01:19]} {[%emt 00:00:01]} Rf5 {[%clk 00:02:13]} {[%emt 00:00:13]}
22. Qh3 {[%clk 00:01:05]} {[%emt 00:00:16]} Kg7 {[%clk 00:01:59]} {[%emt
00:00:16]} 23. Rh8 {[%clk 00:00:57]} {[%emt 00:00:09]} Rf8 {[%clk 00:01:57]}
{[%emt 00:00:05]} 24. Rxf8 {[%clk 00:00:54]} {[%emt 00:00:06]} Kxf8 {[%clk
00:01:56]} {[%emt 00:00:03]} 25. Qc8+ {[%clk 00:00:55]} Qe8 {[%clk 00:01:52]}
{[%emt 00:00:05]} 26. Qf5+ {[%clk 00:00:39]} {[%emt 00:00:17]} Qf7 {[%clk
00:01:54]} {[%emt 00:00:01]} 27. Qc8+ {[%clk 00:00:33]} {[%emt 00:00:08]} Kg7
{[%clk 00:01:55]} {[%emt 00:00:01]} 28. f4 {[%clk 00:00:31]} {[%emt 00:00:03]}
exf4 {[%clk 00:01:52]} {[%emt 00:00:05]} 29. exf4 {[%clk 00:00:31]} {[%emt
00:00:03]} Qxf4+ {[%clk 00:01:52]} {[%emt 00:00:02]} 30. Kg1 {[%clk 00:00:30]}
{[%emt 00:00:02]} Qd4+ {[%clk 00:01:46]} {[%emt 00:00:07]} 31. Kg2 {[%clk
00:00:28]} {[%emt 00:00:05]} Qe4+ {[%clk 00:01:45]} {[%emt 00:00:03]} 32. Kg3
{[%clk 00:00:20]} {[%emt 00:00:09]} Qf4+ {[%clk 00:01:32]} {[%emt 00:00:16]} 33.
Kg2 {[%clk 00:00:19]} {[%emt 00:00:03]} Qf7 {[%clk 00:01:33]} 34. Qc3+ {[%clk
00:00:07]} {[%emt 00:00:15]} Kg6 {[%clk 00:01:28]} {[%emt 00:00:06]} 35. Qc8
{[%clk 00:00:07]} {[%emt 00:00:02]} Nc6 {[%clk 00:01:22]} {[%emt 00:00:08]} 36.
Qxa8 {[%clk 00:00:08]} {[%emt 00:00:02]} Ne5 {[%clk 00:01:18]} {[%emt
00:00:06]} 37. Qd8 {[%clk 00:00:07]} {[%emt 00:00:03]} Qf3+ {[%clk 00:01:19]}
{[%emt 00:00:02]} 38. Kg1 {[%clk 00:00:08]} Qd1+ {[%clk 00:01:17]} {[%emt
00:00:03]} 39. Kg2 {[%clk 00:00:09]} {[%emt 00:00:01]} Qxc2+ {[%clk 00:01:18]}
{[%emt 00:00:02]} 40. Kh1 {[%clk 00:00:09]} {[%emt 00:00:01]} Qe4+ {[%clk
00:01:19]} {[%emt 00:00:02]} 41. Kg1 {[%clk 00:00:09]} {[%emt 00:00:02]} Nf3+
{[%clk 00:01:20]} {[%emt 00:00:01]} 42. Kf2 {[%clk 00:00:09]} Ne5 {[%clk
00:01:11]} {[%emt 00:00:11]} 43. Qg8+ {[%clk 00:00:05]} {[%emt 00:00:07]} Kf5
{[%clk 00:01:09]} {[%emt 00:00:01]} 44. Qh7+ {[%clk 00:00:06]} {[%emt
00:00:03]} Kg4 {[%clk 00:01:07]} {[%emt 00:00:04]} 45. Kf1 {[%clk 00:00:03]}
{[%emt 00:00:06]} Qxh7 {[%clk 00:01:04]} {[%emt 00:00:05]} 0-1

[Event "SM-blixten 2025"]
[Site "Uppsala, Sweden"]
[Date "2025.07.03"]
[Round "8.2"]
[White "Seo, Jung Min"]
[Black "Malmstig, Erik"]
[Result "1-0"]
[TimeControl "3 min + 2 sec increment starting from move 1"]
[WhiteTitle "IM"]
[BlackTitle "FM"]
[WhiteElo "2468"]
[BlackElo "2231"]

1. c4 {[%clk 00:03:04]} {[%emt 00:08:17]} e5 {[%clk 00:03:03]} {[%emt
00:00:02]} 2. Nc3 {[%clk 00:03:05]} d6 {[%clk 00:03:04]} {[%emt 00:00:01]} 3.
g3 {[%clk 00:03:04]} {[%emt 00:00:02]} c6 {[%clk 00:03:06]} {[%emt 00:00:01]} 4.
Bg2 {[%clk 00:03:05]} {[%emt 00:00:01]} f5 {[%clk 00:03:07]} 5. b4 {[%clk
00:03:03]} {[%emt 00:00:04]} Nf6 {[%clk 00:03:08]} {[%emt 00:00:01]} 6. b5
{[%clk 00:03:03]} {[%emt 00:00:02]} Be7 {[%clk 00:03:08]} {[%emt 00:00:01]} 7.
d3 {[%clk 00:03:02]} {[%emt 00:00:04]} O-O {[%clk 00:03:08]} {[%emt 00:00:02]}
8. Nf3 {[%clk 00:02:59]} {[%emt 00:00:04]} Qc7 {[%clk 00:03:05]} {[%emt
00:00:06]} 9. O-O {[%clk 00:02:56]} {[%emt 00:00:05]} h6 {[%clk 00:03:06]}
{[%emt 00:00:01]} 10. a4 {[%clk 00:02:52]} {[%emt 00:00:06]} a5 {[%clk
00:03:05]} {[%emt 00:00:03]} 11. d4 {[%clk 00:02:43]} {[%emt 00:00:10]} e4
{[%clk 00:03:04]} {[%emt 00:00:04]} 12. Nh4 {[%clk 00:02:40]} {[%emt 00:00:04]}
Ng4 {[%clk 00:02:43]} {[%emt 00:00:23]} 13. Ng6 {[%clk 00:02:41]} {[%emt
00:00:02]} Rf6 {[%clk 00:02:44]} {[%emt 00:00:01]} 14. Nxe7+ {[%clk 00:02:40]}
{[%emt 00:00:03]} Qxe7 {[%clk 00:02:45]} {[%emt 00:00:01]} 15. h3 {[%clk
00:02:37]} {[%emt 00:00:04]} Nxf2 {[%clk 00:02:28]} {[%emt 00:00:20]} 16. Rxf2
{[%clk 00:02:36]} {[%emt 00:00:03]} Be6 {[%clk 00:02:20]} {[%emt 00:00:09]} 17.
d5 {[%clk 00:02:36]} {[%emt 00:00:02]} Bf7 {[%clk 00:02:15]} {[%emt 00:00:07]}
18. bxc6 {[%clk 00:02:22]} {[%emt 00:00:16]} bxc6 {[%clk 00:02:16]} {[%emt
00:00:01]} 19. Be3 {[%clk 00:02:20]} {[%emt 00:00:04]} c5 {[%clk 00:02:12]}
{[%emt 00:00:06]} 20. g4 {[%clk 00:02:08]} {[%emt 00:00:15]} fxg4 {[%clk
00:02:10]} {[%emt 00:00:04]} 21. Rxf6 {[%clk 00:02:00]} {[%emt 00:00:10]} Qxf6
{[%clk 00:02:07]} {[%emt 00:00:05]} 22. Nxe4 {[%clk 00:02:00]} {[%emt
00:00:02]} Qg6 {[%clk 00:02:01]} {[%emt 00:00:08]} 23. hxg4 {[%clk 00:01:54]}
{[%emt 00:00:08]} Nd7 {[%clk 00:01:55]} {[%emt 00:00:08]} 24. Qf1 {[%clk
00:01:49]} {[%emt 00:00:07]} Re8 {[%clk 00:01:53]} {[%emt 00:00:04]} 25. Qf5
{[%clk 00:01:46]} {[%emt 00:00:05]} Nb6 {[%clk 00:01:20]} {[%emt 00:00:36]} 26.
Bf4 {[%clk 00:01:35]} {[%emt 00:00:12]} Nxc4 {[%clk 00:01:15]} {[%emt
00:00:08]} 27. Qxg6 {[%clk 00:01:33]} {[%emt 00:00:03]} Bxg6 {[%clk 00:01:15]}
{[%emt 00:00:02]} 28. Nxd6 {[%clk 00:01:32]} {[%emt 00:00:02]} Nxd6 {[%clk
00:01:13]} {[%emt 00:00:06]} 29. Bxd6 {[%clk 00:01:32]} {[%emt 00:00:02]} c4
{[%clk 00:01:01]} {[%emt 00:00:15]} 30. Rc1 {[%clk 00:01:29]} {[%emt 00:00:03]}
Rxe2 {[%clk 00:00:44]} {[%emt 00:00:19]} 31. Rxc4 {[%clk 00:01:29]} {[%emt
00:00:02]} Rd2 {[%clk 00:00:39]} {[%emt 00:00:07]} 32. Bc7 {[%clk 00:01:25]}
{[%emt 00:00:06]} Bf7 {[%clk 00:00:40]} {[%emt 00:00:01]} 33. Rc5 {[%clk
00:01:24]} {[%emt 00:00:04]} Rd4 {[%clk 00:00:36]} {[%emt 00:00:05]} 34. d6
{[%clk 00:01:14]} {[%emt 00:00:12]} Be6 {[%clk 00:00:29]} {[%emt 00:00:09]} 35.
Rxa5 {[%emt 00:00:08]} Rxg4 {[%clk 00:00:28]} {[%emt 00:00:03]} 36. Kf2 {[%clk
00:01:05]} {[%emt 00:00:06]} Rd4 {[%clk 00:00:06]} {[%emt 00:00:24]} 37. Re5
{[%clk 00:00:57]} {[%emt 00:00:09]} 1-0

[Event "SM-blixten 2025"]
[Site "Uppsala, Sweden"]
[Date "2025.07.03"]
[Round "9.8"]
[White "Hakanson, Josef"]
[Black "Agrest, Simon"]
[Result "1-0"]
[TimeControl "3 min + 2 sec increment starting from move 1"]
[WhiteElo "2131"]
[BlackElo "2006"]

1. e4 {[%clk 00:03:03]} {[%emt 00:00:01]} e5 {[%clk 00:03:03]} {[%emt
00:00:01]} 2. Nf3 {[%clk 00:03:03]} {[%emt 00:00:01]} Nc6 {[%clk 00:03:04]}
{[%emt 00:00:01]} 3. Bc4 {[%clk 00:03:05]} {[%emt 00:00:01]} Nf6 {[%clk
00:03:05]} {[%emt 00:00:01]} 4. d3 {[%clk 00:03:06]} Bc5 {[%clk 00:03:06]} 5.
O-O {[%clk 00:03:06]} a6 {[%clk 00:03:06]} {[%emt 00:00:04]} 6. a4 {[%emt
00:00:03]} d6 {[%clk 00:03:06]} 7. Na3 {[%clk 00:03:07]} {[%emt 00:00:02]} Bg4
{[%clk 00:03:04]} {[%emt 00:00:04]} 8. c3 {[%clk 00:03:08]} {[%emt 00:00:02]}
Qd7 {[%clk 00:02:56]} {[%emt 00:00:09]} 9. b4 {[%clk 00:03:07]} Ba7 {[%clk
00:02:54]} {[%emt 00:00:06]} 10. Nc2 {[%clk 00:03:08]} O-O {[%clk 00:02:13]}
{[%emt 00:00:44]} 11. Bg5 {[%clk 00:02:58]} Ne8 {[%clk 00:01:36]} {[%emt
00:00:52]} 12. Ne3 {[%clk 00:02:57]} Be6 {[%clk 00:01:36]} {[%emt 00:00:04]} 13.
Qb3 {[%clk 00:02:42]} Kh8 {[%clk 00:01:33]} {[%emt 00:00:23]} 14. Bh4 {[%clk
00:02:35]} Bxc4 {[%clk 00:00:59]} {[%emt 00:00:45]} 15. Qxc4 {[%clk 00:02:35]}
Bxe3 {[%clk 00:00:40]} {[%emt 00:00:22]} 16. fxe3 {[%clk 00:02:36]} {[%emt
00:00:02]} f5 {[%clk 00:00:37]} {[%emt 00:00:06]} 17. exf5 {[%clk 00:02:28]}
{[%emt 00:00:09]} Rxf5 {[%clk 00:00:23]} {[%emt 00:00:15]} 18. Ng5 {[%clk
00:02:18]} {[%emt 00:00:12]} Rxf1+ {[%clk 00:00:20]} {[%emt 00:00:06]} 19. Rxf1
{[%clk 00:02:18]} {[%emt 00:00:02]} d5 {[%clk 00:00:19]} {[%emt 00:00:03]} 20.
Rf8# {[%clk 00:02:19]} 1-0

[Event "SM-blixten 2025"]
[Site "Uppsala, Sweden"]
[Date "2025.07.03"]
[Round "11.4"]
[White "Johnson, Daniel"]
[Black "Pantzar, Milton"]
[Result "0-1"]
[TimeControl "3 min + 2 sec increment starting from move 1"]
[BlackTitle "IM"]
[WhiteElo "2175"]
[BlackElo "2444"]

1. e4 {[%clk 00:03:02]} {[%emt 00:00:02]} e5 {[%clk 00:03:01]} {[%emt
00:00:05]} 2. Nf3 {[%clk 00:03:02]} {[%emt 00:00:01]} d6 {[%clk 00:03:02]}
{[%emt 00:00:01]} 3. d4 {[%clk 00:03:02]} {[%emt 00:00:03]} exd4 {[%clk
00:03:03]} {[%emt 00:00:01]} 4. Qxd4 {[%clk 00:03:01]} {[%emt 00:00:02]} Nc6
{[%clk 00:03:00]} {[%emt 00:00:05]} 5. Bb5 {[%clk 00:03:00]} {[%emt 00:00:02]}
Nf6 {[%clk 00:02:58]} {[%emt 00:00:05]} 6. Nc3 {[%clk 00:03:00]} {[%emt
00:00:01]} Be7 {[%clk 00:02:58]} {[%emt 00:00:03]} 7. Bf4 {[%clk 00:02:53]}
{[%emt 00:00:09]} O-O {[%clk 00:02:56]} {[%emt 00:00:03]} 8. Qd2 {[%clk
00:02:53]} {[%emt 00:00:03]} a6 {[%clk 00:02:34]} {[%emt 00:00:25]} 9. Bc4
{[%clk 00:02:40]} {[%emt 00:00:14]} b5 {[%clk 00:02:29]} {[%emt 00:00:07]} 10.
Bd5 {[%clk 00:02:03]} {[%emt 00:00:39]} Nxd5 {[%clk 00:02:24]} {[%emt
00:00:07]} 11. exd5 {[%clk 00:01:07]} {[%emt 00:00:58]} Na5 {[%clk 00:02:22]}
{[%emt 00:00:04]} 12. Qd3 {[%clk 00:01:07]} {[%emt 00:00:01]} g6 {[%clk
00:01:45]} {[%emt 00:00:40]} 13. Nd4 {[%clk 00:01:02]} {[%emt 00:00:06]} Bf6
{[%clk 00:01:20]} {[%emt 00:00:27]} 14. O-O {[%clk 00:00:58]} {[%emt 00:00:07]}
Bd7 {[%clk 00:01:22]} {[%emt 00:00:01]} 15. Ne4 {[%clk 00:00:36]} {[%emt
00:00:23]} Be7 {[%clk 00:01:14]} {[%emt 00:00:10]} 16. Rfe1 {[%clk 00:00:34]}
{[%emt 00:00:04]} Nc4 {[%clk 00:01:06]} {[%emt 00:00:10]} 17. b3 {[%clk
00:00:20]} {[%emt 00:00:16]} Ne5 {[%clk 00:01:07]} 18. Qd2 {[%clk 00:00:21]}
{[%emt 00:00:01]} Re8 {[%clk 00:01:00]} {[%emt 00:00:10]} 19. h3 {[%clk
00:00:21]} {[%emt 00:00:01]} f5 {[%emt 00:00:19]} 20. Ng5 {[%clk 00:00:16]}
{[%emt 00:00:05]} Bf6 {[%clk 00:00:35]} {[%emt 00:00:12]} 21. Nge6 {[%clk
00:00:16]} {[%emt 00:00:02]} Bxe6 {[%clk 00:00:34]} {[%emt 00:00:03]} 22. Nxe6
{[%clk 00:00:16]} {[%emt 00:00:01]} Qd7 {[%clk 00:00:34]} {[%emt 00:00:03]} 23.
Nd4 {[%clk 00:00:16]} {[%emt 00:00:02]} Qf7 {[%clk 00:00:33]} {[%emt 00:00:02]}
24. Ne6 {[%clk 00:00:08]} {[%emt 00:00:10]} c6 {[%clk 00:00:31]} {[%emt
00:00:04]} 25. Ng5 {[%clk 00:00:07]} {[%emt 00:00:03]} Bxg5 26. Bxg5 {[%clk
00:00:08]} c5 {[%clk 00:00:23]} {[%emt 00:00:11]} 27. Rad1 {[%clk 00:00:06]}
{[%emt 00:00:03]} Nd7 {[%clk 00:00:17]} {[%emt 00:00:08]} 28. Bf4 {[%clk
00:00:07]} {[%emt 00:00:01]} Qf6 {[%clk 00:00:18]} {[%emt 00:00:01]} 29. c4
{[%clk 00:00:06]} {[%emt 00:00:03]} bxc4 {[%clk 00:00:15]} {[%emt 00:00:05]} 30.
bxc4 {[%clk 00:00:07]} {[%emt 00:00:01]} Rab8 {[%clk 00:00:13]} {[%emt
00:00:05]} 31. Rb1 {[%clk 00:00:08]} {[%emt 00:00:01]} Rxe1+ {[%clk 00:00:11]}
{[%emt 00:00:03]} 32. Qxe1 {[%clk 00:00:09]} {[%emt 00:00:02]} Rxb1 {[%clk
00:00:10]} {[%emt 00:00:03]} 33. Qxb1 {[%clk 00:00:10]} {[%emt 00:00:01]} g5
{[%clk 00:00:09]} {[%emt 00:00:02]} 34. Qb7 {[%clk 00:00:08]} {[%emt 00:00:04]}
Nf8 {[%clk 00:00:05]} {[%emt 00:00:06]} 35. Bg3 {[%clk 00:00:05]} {[%emt
00:00:05]} f4 {[%clk 00:00:06]} {[%emt 00:00:01]} 36. Bxf4 {[%clk 00:00:05]}
{[%emt 00:00:02]} gxf4 {[%clk 00:00:07]} {[%emt 00:00:01]} 37. Qxa6 {[%clk
00:00:05]} {[%emt 00:00:02]} f3 {[%clk 00:00:07]} {[%emt 00:00:01]} 38. Qc8
{[%clk 00:00:04]} {[%emt 00:00:03]} Qg5 {[%clk 00:00:07]} {[%emt 00:00:03]} 39.
Qg4 {[%clk 00:00:03]} {[%emt 00:00:02]} Qxg4 {[%clk 00:00:08]} {[%emt
00:00:02]} 40. hxg4 {[%clk 00:00:04]} {[%emt 00:00:01]} fxg2 {[%clk 00:00:08]}
{[%emt 00:00:02]} 41. Kxg2 {[%clk 00:00:05]} {[%emt 00:00:01]} Nd7 {[%clk
00:00:09]} 42. f4 {[%clk 00:00:04]} {[%emt 00:00:03]} Nb6 {[%clk 00:00:11]}
{[%emt 00:00:02]} 43. Kf3 {[%clk 00:00:04]} {[%emt 00:00:01]} Nxc4 {[%clk
00:00:11]} {[%emt 00:00:02]} 44. Ke4 {[%clk 00:00:05]} Nb6 {[%clk 00:00:12]}
{[%emt 00:00:01]} 45. g5 {[%clk 00:00:04]} {[%emt 00:00:03]} Kf7 {[%clk
00:00:13]} {[%emt 00:00:01]} 46. f5 {[%clk 00:00:05]} {[%emt 00:00:01]} Kg7
{[%clk 00:00:11]} {[%emt 00:00:04]} 47. a3 {[%clk 00:00:05]} {[%emt 00:00:02]}
Kf7 {[%clk 00:00:12]} {[%emt 00:00:01]} 0-1

[Event "SM-blixten 2025"]
[Site "Uppsala, Sweden"]
[Date "2025.07.03"]
[Round "1.9"]
[White "Andersson, Sven-Olof"]
[Black "Sandstrom, Ludvig"]
[Result "0-1"]
[TimeControl "3 min + 2 sec increment starting from move 1"]
[WhiteElo "1895"]
[BlackElo "2327"]

1. d4 {[%clk 00:03:02]} {[%emt 00:00:02]} Nf6 {[%clk 00:03:02]} {[%emt
00:00:02]} 2. Nf3 {[%clk 00:03:03]} {[%emt 00:00:01]} g6 {[%clk 00:03:02]}
{[%emt 00:00:02]} 3. b3 {[%clk 00:03:03]} {[%emt 00:00:02]} Bg7 {[%clk
00:03:02]} {[%emt 00:00:02]} 4. Bb2 {[%clk 00:03:04]} {[%emt 00:00:02]} O-O
{[%clk 00:03:00]} {[%emt 00:00:03]} 5. g3 {[%clk 00:03:03]} {[%emt 00:00:03]}
d6 {[%clk 00:03:00]} {[%emt 00:00:02]} 6. Bg2 {[%clk 00:03:00]} {[%emt
00:00:05]} a5 {[%clk 00:03:01]} {[%emt 00:00:01]} 7. a4 {[%clk 00:02:57]}
{[%emt 00:00:05]} Na6 {[%clk 00:03:00]} {[%emt 00:00:02]} 8. O-O {[%clk
00:02:51]} {[%emt 00:00:09]} c6 {[%clk 00:02:59]} {[%emt 00:00:03]} 9. Re1
{[%clk 00:02:50]} {[%emt 00:00:03]} Bf5 {[%clk 00:02:57]} {[%emt 00:00:04]} 10.
Nbd2 {[%clk 00:02:35]} {[%emt 00:00:16]} Qc7 {[%clk 00:02:33]} {[%emt
00:00:27]} 11. e4 {[%clk 00:02:22]} {[%emt 00:00:15]} Bg4 {[%clk 00:02:34]} 12.
h3 {[%clk 00:02:21]} {[%emt 00:00:03]} Bxf3 {[%clk 00:02:34]} {[%emt 00:00:02]}
13. Nxf3 {[%clk 00:02:07]} {[%emt 00:00:16]} Nd7 {[%clk 00:02:33]} {[%emt
00:00:02]} 14. e5 {[%clk 00:01:56]} {[%emt 00:00:14]} dxe5 {[%clk 00:02:28]}
{[%emt 00:00:07]} 15. dxe5 {[%clk 00:01:48]} {[%emt 00:00:09]} Ndc5 {[%clk
00:02:29]} {[%emt 00:00:02]} 16. Bc3 {[%clk 00:01:24]} {[%emt 00:00:25]} Rad8
{[%clk 00:02:24]} {[%emt 00:00:07]} 17. Qe2 {[%clk 00:01:23]} {[%emt 00:00:03]}
Nb4 {[%clk 00:02:23]} {[%emt 00:00:03]} 18. Bxb4 {[%clk 00:01:21]} {[%emt
00:00:04]} axb4 {[%clk 00:02:24]} {[%emt 00:00:02]} 19. Rad1 {[%clk 00:01:15]}
{[%emt 00:00:07]} Ne6 {[%clk 00:02:10]} {[%emt 00:00:16]} 20. Rxd8 {[%clk
00:01:11]} {[%emt 00:00:06]} Rxd8 {[%clk 00:02:11]} {[%emt 00:00:01]} 21. Rd1
{[%clk 00:01:12]} {[%emt 00:00:01]} Rxd1+ {[%clk 00:02:05]} {[%emt 00:00:08]}
22. Qxd1 {[%clk 00:01:12]} {[%emt 00:00:01]} Bxe5 {[%clk 00:02:06]} {[%emt
00:00:02]} 23. Nxe5 {[%clk 00:01:03]} {[%emt 00:00:11]} Qxe5 {[%clk 00:02:07]}
24. f4 {[%clk 00:00:51]} {[%emt 00:00:15]} Qc5+ {[%clk 00:01:58]} {[%emt
00:00:10]} 25. Kh2 {[%clk 00:00:50]} {[%emt 00:00:03]} Nd4 {[%clk 00:01:59]}
{[%emt 00:00:01]} 26. Be4 {[%clk 00:00:46]} {[%emt 00:00:06]} Qc3 {[%clk
00:01:52]} {[%emt 00:00:09]} 27. Qd3 {[%clk 00:00:42]} {[%emt 00:00:07]} Qxd3
{[%clk 00:01:01]} {[%emt 00:00:52]} 28. Bxd3 {[%clk 00:00:42]} {[%emt
00:00:01]} Nf3+ {[%clk 00:00:40]} {[%emt 00:00:24]} 29. Kg2 {[%clk 00:00:42]}
{[%emt 00:00:02]} Ne1+ {[%clk 00:00:41]} {[%emt 00:00:01]} 30. Kf2 {[%clk
00:00:42]} {[%emt 00:00:02]} Nxd3+ {[%clk 00:00:42]} {[%emt 00:00:01]} 31. cxd3
{[%clk 00:00:43]} Kg7 {[%clk 00:00:43]} {[%emt 00:00:01]} 32. Ke3 {[%clk
00:00:43]} {[%emt 00:00:02]} Kf6 {[%clk 00:00:40]} {[%emt 00:00:05]} 33. g4
{[%clk 00:00:43]} {[%emt 00:00:02]} Ke6 {[%clk 00:00:40]} {[%emt 00:00:02]} 34.
Ke4 {[%clk 00:00:42]} {[%emt 00:00:03]} f5+ {[%clk 00:00:29]} {[%emt 00:00:14]}
35. Kd4 {[%clk 00:00:36]} {[%emt 00:00:07]} Kd6 {[%clk 00:00:29]} {[%emt
00:00:02]} 36. gxf5 gxf5 {[%clk 00:00:30]} 37. Kc4 {[%clk 00:00:36]} {[%emt
00:00:02]} e5 {[%clk 00:00:26]} {[%emt 00:00:05]} 38. fxe5+ {[%clk 00:00:31]}
{[%emt 00:00:06]} Kxe5 {[%clk 00:00:28]} 39. d4+ {[%clk 00:00:30]} {[%emt
00:00:04]} Ke4 {[%clk 00:00:28]} {[%emt 00:00:01]} 40. Kxb4 {[%clk 00:00:27]}
{[%emt 00:00:05]} f4 {[%clk 00:00:29]} {[%emt 00:00:01]} 41. Kc5 {[%clk
00:00:22]} {[%emt 00:00:08]} f3 {[%clk 00:00:29]} {[%emt 00:00:02]} 42. Kb6
{[%clk 00:00:23]} {[%emt 00:00:01]} f2 {[%clk 00:00:29]} {[%emt 00:00:02]} 43.
Kxb7 {[%clk 00:00:23]} {[%emt 00:00:01]} f1=Q {[%clk 00:00:19]} {[%emt
00:00:12]} 44. a5 {[%clk 00:00:24]} {[%emt 00:00:02]} Qb5+ {[%clk 00:00:19]}
{[%emt 00:00:02]} 45. Kc7 {[%clk 00:00:24]} {[%emt 00:00:02]} Kxd4 {[%clk
00:00:18]} {[%emt 00:00:03]} 46. b4 {[%clk 00:00:21]} {[%emt 00:00:05]} Kc4
{[%clk 00:00:18]} {[%emt 00:00:02]} 47. h4 {[%clk 00:00:20]} {[%emt 00:00:03]}
Kxb4 {[%clk 00:00:18]} {[%emt 00:00:02]} 48. h5 {[%clk 00:00:20]} {[%emt
00:00:02]} Qxa5+ {[%clk 00:00:18]} {[%emt 00:00:02]} 49. Kxc6 {[%clk 00:00:21]}
{[%emt 00:00:02]} Qxh5 {[%clk 00:00:18]} {[%emt 00:00:01]} 50. Kd6 {[%emt
00:00:16]} 0-1